{"text_format":"1","workbook":"xlsx","n_sheets":1,"sheets":["リスト"],"not_rendered":{"charts":0,"images":1,"macros":1,"external_links":0,"defined_names":2,"comments":0,"pivot_tables":0},"unopened":[],"bounds":{"document_bytes":16777216,"sheet_cells":100000,"rows_first":2000,"rows_last":500,"rows_between":2000,"halvings":0,"cell_chars":16384,"cell_head_chars":4096},"cells_cut":0,"cells_raw":0,"read":"whole","date_system":"1900"}

{"sheet":"リスト","index":0,"n_rows":27,"n_cols":7,"rows_kept":27,"cut":false,"hidden":false,"merged":[]}
[null,"RoomTourist"]
[null,"家具・家電サイズ表"]
[]
[null,null,null,null,null,"自動計算されます"]
[null,"項目","縦（cm）","横（cm）","奥行（cm）","斜め(対角線）（cm）","メモ"]
[null,"（例）ソファ",90,120,60,{"$f":"RECTPRISMDIA(C6,D6,E6)","v":161.55494421403512}]
[null,null,null,null,null,{"$f":"RECTPRISMDIA(C7,D7,E7)","v":0}]
[null,null,null,null,null,{"$f":"RECTPRISMDIA(C8,D8,E8)","v":0}]
[null,null,null,null,null,{"$f":"RECTPRISMDIA(C9,D9,E9)","v":0}]
[null,null,null,null,null,{"$f":"RECTPRISMDIA(C10,D10,E10)","v":0}]
[null,null,null,null,null,{"$f":"RECTPRISMDIA(C11,D11,E11)","v":0}]
[null,null,null,null,null,{"$f":"RECTPRISMDIA(C12,D12,E12)","v":0}]
[null,null,null,null,null,{"$f":"RECTPRISMDIA(C13,D13,E13)","v":0}]
[null,null,null,null,null,{"$f":"RECTPRISMDIA(C14,D14,E14)","v":0}]
[null,null,null,null,null,{"$f":"RECTPRISMDIA(C15,D15,E15)","v":0}]
[null,null,null,null,null,{"$f":"RECTPRISMDIA(C16,D16,E16)","v":0}]
[null,null,null,null,null,{"$f":"RECTPRISMDIA(C17,D17,E17)","v":0}]
[null,null,null,null,null,{"$f":"RECTPRISMDIA(C18,D18,E18)","v":0}]
[null,null,null,null,null,{"$f":"RECTPRISMDIA(C19,D19,E19)","v":0}]
[null,null,null,null,null,{"$f":"RECTPRISMDIA(C20,D20,E20)","v":0}]
[null,null,null,null,null,{"$f":"RECTPRISMDIA(C21,D21,E21)","v":0}]
[null,null,null,null,null,{"$f":"RECTPRISMDIA(C22,D22,E22)","v":0}]
[null,null,null,null,null,{"$f":"RECTPRISMDIA(C23,D23,E23)","v":0}]
[null,null,null,null,null,{"$f":"RECTPRISMDIA(C24,D24,E24)","v":0}]
[null,null,null,null,null,{"$f":"RECTPRISMDIA(C25,D25,E25)","v":0}]
[null,null,null,null,null,{"$f":"RECTPRISMDIA(C26,D26,E26)","v":0}]
[null,null,null,null,null,{"$f":"RECTPRISMDIA(C27,D27,E27)","v":0}]